[Event "Early-Titled-Tuesday-Blitz-September-12-2023"]
[Site "Chess.com"]
[Date "2023.09.12"]
[Round "9"]
[White "FMStan15"]
[Black "Romkachess"]
[Result "0-1"]
[WhiteElo "2091"]
[BlackElo "2508"]
[TimeControl "180+1"]
[EndTime "9:43:49 PDT"]
[Termination "Romkachess won by resignation"]

1. e4 {[%clk 0:02:38.3]} 1... c5 {[%clk 0:02:59.4]} 2. c3 {[%clk 0:02:37.4]}
2... Nf6 {[%clk 0:02:58.6]} 3. e5 {[%clk 0:02:36]} 3... Nd5 {[%clk 0:02:59.1]}
4. d4 {[%clk 0:02:31.7]} 4... cxd4 {[%clk 0:03:00]} 5. Nf3 {[%clk 0:02:32.1]}
5... e6 {[%clk 0:02:58.7]} 6. cxd4 {[%clk 0:02:31.4]} 6... Nc6 {[%clk
0:02:59.1]} 7. a3 {[%clk 0:02:31.6]} 7... d6 {[%clk 0:02:58.2]} 8. Bd3 {[%clk
0:02:31.8]} 8... Be7 {[%clk 0:02:58]} 9. O-O {[%clk 0:02:30.8]} 9... O-O {[%clk
0:02:57.9]} 10. Qe2 {[%clk 0:02:30.8]} 10... b6 {[%clk 0:02:52.3]} 11. Qe4
{[%clk 0:02:29]} 11... g6 {[%clk 0:02:52.2]} 12. Bh6 {[%clk 0:02:28]} 12... Re8
{[%clk 0:02:52.2]} 13. Qg4 {[%clk 0:02:24.8]} 13... Bb7 {[%clk 0:02:40.3]} 14.
h4 {[%clk 0:02:17.7]} 14... Rc8 {[%clk 0:02:34.7]} 15. h5 {[%clk 0:02:16.9]}
15... Bf8 {[%clk 0:02:32.7]} 16. hxg6 {[%clk 0:01:34.1]} 16... hxg6 {[%clk
0:01:41.3]} 17. Bxg6 {[%clk 0:01:03.2]} 17... Bxh6 {[%clk 0:01:39.4]} 18. Bxf7+
{[%clk 0:01:02.9]} 18... Kxf7 {[%clk 0:01:38.2]} 19. Qh5+ {[%clk 0:01:03.3]}
19... Kg7 {[%clk 0:01:38.3]} 20. Qg4+ {[%clk 0:01:00.8]} 20... Kh7 {[%clk
0:01:29.6]} 21. Qh5 {[%clk 0:00:57.5]} 21... Qe7 {[%clk 0:01:23.3]} 22. Nbd2
{[%clk 0:00:48.2]} 22... Nf4 {[%clk 0:01:17.9]} 23. Qh2 {[%clk 0:00:40.4]} 23...
Rg8 {[%clk 0:01:17.4]} 24. g3 {[%clk 0:00:39.6]} 24... Nxd4 {[%clk 0:01:15.8]}
25. Rfe1 {[%clk 0:00:11.2]} 25... Bxf3 {[%clk 0:01:12.4]} 0-1

[Event "Early-Titled-Tuesday-Blitz-September-12-2023"]
[Site "Chess.com"]
[Date "2023.09.12"]
[Round "9"]
[White "CSB7"]
[Black "Alphafischer2019"]
[Result "1-0"]
[WhiteElo "2718"]
[BlackElo "2548"]
[TimeControl "180+1"]
[EndTime "9:43:53 PDT"]
[Termination "CSB7 won by checkmate"]

1. Nf3 {[%clk 0:02:58.7]} 1... d5 {[%clk 0:02:58.1]} 2. g3 {[%clk 0:02:57.1]}
2... Nf6 {[%clk 0:02:58.3]} 3. Bg2 {[%clk 0:02:57.1]} 3... Bf5 {[%clk
0:02:58.8]} 4. c4 {[%clk 0:02:51.4]} 4... e6 {[%clk 0:02:50]} 5. O-O {[%clk
0:02:45.8]} 5... c6 {[%clk 0:02:48.3]} 6. Qb3 {[%clk 0:02:41.4]} 6... Qb6 {[%clk
0:02:46.8]} 7. d3 {[%clk 0:02:41.6]} 7... Nbd7 {[%clk 0:02:46.2]} 8. Be3 {[%clk
0:02:37.6]} 8... Qa6 {[%clk 0:02:46.5]} 9. Nbd2 {[%clk 0:02:15.2]} 9... h6
{[%clk 0:02:42]} 10. Bd4 {[%clk 0:01:59.6]} 10... Be7 {[%clk 0:02:39.5]} 11.
Rfe1 {[%clk 0:01:53.5]} 11... O-O {[%clk 0:02:38]} 12. e4 {[%clk 0:01:53.4]}
12... dxe4 {[%clk 0:02:28]} 13. dxe4 {[%clk 0:01:54.3]} 13... Bh7 {[%clk
0:02:26.7]} 14. e5 {[%clk 0:01:46.7]} 14... Ne8 {[%clk 0:02:25.3]} 15. Qe3
{[%clk 0:01:36.4]} 15... Nc7 {[%clk 0:02:19.7]} 16. Bf1 {[%clk 0:01:23.1]} 16...
b6 {[%clk 0:02:17.3]} 17. Ne4 {[%clk 0:01:18.5]} 17... Bxe4 {[%clk 0:02:13.2]}
18. Qxe4 {[%clk 0:01:19.4]} 18... Qb7 {[%clk 0:02:06]} 19. Bd3 {[%clk
0:01:07.2]} 19... g6 {[%clk 0:02:05.6]} 20. h4 {[%clk 0:01:05.7]} 20... h5
{[%clk 0:01:29.9]} 21. g4 {[%clk 0:01:03.4]} 21... hxg4 {[%clk 0:01:24.9]} 22.
Qxg4 {[%clk 0:01:04.3]} 22... Rfd8 {[%clk 0:01:15.6]} 23. h5 {[%clk 0:00:46.6]}
23... Nf8 {[%clk 0:01:14.6]} 24. hxg6 {[%clk 0:00:45.8]} 24... fxg6 {[%clk
0:01:15.3]} 25. Bxg6 {[%clk 0:00:45]} 25... Nxg6 {[%clk 0:01:16.2]} 26. Qxg6+
{[%clk 0:00:45.1]} 26... Kh8 {[%clk 0:01:14.6]} 27. Qh6+ {[%clk 0:00:38.2]}
27... Kg8 {[%clk 0:01:14.6]} 28. Re4 {[%clk 0:00:30.3]} 28... Kf7 {[%clk
0:01:14]} 29. Qh5+ {[%clk 0:00:28.5]} 29... Kg7 {[%clk 0:01:05.3]} 30. Rg4+
{[%clk 0:00:28.2]} 30... Kf8 {[%clk 0:01:05.8]} 31. Qh8+ {[%clk 0:00:28.2]}
31... Kf7 {[%clk 0:01:06.1]} 32. Rg7# {[%clk 0:00:29.1]} 1-0

[Event "Early-Titled-Tuesday-Blitz-September-12-2023"]
[Site "Chess.com"]
[Date "2023.09.12"]
[Round "9"]
[White "JiiHart"]
[Black "LileKoridze"]
[Result "0-1"]
[WhiteElo "2150"]
[BlackElo "2378"]
[TimeControl "180+1"]
[EndTime "9:43:55 PDT"]
[Termination "LileKoridze won on time"]

1. e4 {[%clk 0:03:00.9]} 1... c5 {[%clk 0:02:58.7]} 2. c3 {[%clk 0:03:00.5]}
2... Nf6 {[%clk 0:02:58.5]} 3. e5 {[%clk 0:03:00.4]} 3... Nd5 {[%clk 0:02:58.7]}
4. d4 {[%clk 0:03:00.4]} 4... cxd4 {[%clk 0:02:58.8]} 5. Nf3 {[%clk 0:03:00.4]}
5... Nc6 {[%clk 0:02:58.6]} 6. cxd4 {[%clk 0:03:00.3]} 6... d6 {[%clk
0:02:58.6]} 7. Nc3 {[%clk 0:03:00.2]} 7... Nxc3 {[%clk 0:02:56.9]} 8. bxc3
{[%clk 0:03:00.2]} 8... Bg4 {[%clk 0:02:55.7]} 9. exd6 {[%clk 0:01:54.2]} 9...
Qxd6 {[%clk 0:02:43.7]} 10. Be2 {[%clk 0:01:52.8]} 10... e6 {[%clk 0:02:40.8]}
11. O-O {[%clk 0:01:51.7]} 11... Be7 {[%clk 0:02:40.3]} 12. Rb1 {[%clk
0:01:47.3]} 12... b6 {[%clk 0:02:39.6]} 13. Qa4 {[%clk 0:01:32.3]} 13... O-O
{[%clk 0:02:34.4]} 14. Rd1 {[%clk 0:01:03.1]} 14... Rfd8 {[%clk 0:02:31.5]} 15.
d5 {[%clk 0:00:34.3]} 15... Ne5 {[%clk 0:02:14.2]} 16. dxe6 {[%clk 0:00:26.9]}
16... Nxf3+ {[%clk 0:01:55.6]} 17. gxf3 {[%clk 0:00:23.9]} 17... Qxe6 {[%clk
0:01:55.9]} 18. Qxg4 {[%clk 0:00:18.8]} 18... Qxe2 {[%clk 0:01:51]} 19. Rxd8+
{[%clk 0:00:17.2]} 19... Rxd8 {[%clk 0:01:50.4]} 20. Be3 {[%clk 0:00:17.3]}
20... Qxa2 {[%clk 0:01:46.8]} 21. Rb5 {[%clk 0:00:14.3]} 21... Qe2 {[%clk
0:01:30.6]} 22. Bd4 {[%clk 0:00:07.2]} 22... Bf8 {[%clk 0:01:25.2]} 23. Re5
{[%clk 0:00:07.2]} 23... Qd1+ {[%clk 0:01:24.5]} 24. Kg2 {[%clk 0:00:07.8]}
24... Rd6 {[%clk 0:01:19]} 25. Rh5 {[%clk 0:00:07.3]} 25... h6 {[%clk
0:01:15.1]} 0-1

[Event "Early-Titled-Tuesday-Blitz-September-12-2023"]
[Site "Chess.com"]
[Date "2023.09.12"]
[Round "9"]
[White "masnyszachistaaa"]
[Black "Witik"]
[Result "1-0"]
[WhiteElo "2573"]
[BlackElo "2721"]
[TimeControl "180+1"]
[EndTime "9:43:59 PDT"]
[Termination "masnyszachistaaa won by resignation"]

1. c4 {[%clk 0:03:00.9]} 1... e5 {[%clk 0:02:57.3]} 2. Nc3 {[%clk 0:03:00.4]}
2... Bb4 {[%clk 0:02:56.1]} 3. Nd5 {[%clk 0:02:59.7]} 3... a5 {[%clk 0:02:53.7]}
4. g3 {[%clk 0:02:56.2]} 4... c6 {[%clk 0:02:51.3]} 5. Nxb4 {[%clk 0:02:55.6]}
5... axb4 {[%clk 0:02:52.2]} 6. Bg2 {[%clk 0:02:54.9]} 6... f5 {[%clk
0:02:42.7]} 7. d4 {[%clk 0:02:45.5]} 7... e4 {[%clk 0:02:41.5]} 8. d5 {[%clk
0:02:39.4]} 8... Nf6 {[%clk 0:02:38.2]} 9. dxc6 {[%clk 0:02:29.9]} 9... bxc6
{[%clk 0:02:10.4]} 10. Nh3 {[%clk 0:02:29.2]} 10... d5 {[%clk 0:02:06.2]} 11.
cxd5 {[%clk 0:02:27.9]} 11... cxd5 {[%clk 0:02:06.6]} 12. Be3 {[%clk 0:02:11.8]}
12... Nc6 {[%clk 0:01:54.7]} 13. Bd4 {[%clk 0:02:11.7]} 13... Ba6 {[%clk
0:01:40.4]} 14. Nf4 {[%clk 0:02:00.6]} 14... Nxd4 {[%clk 0:01:35.8]} 15. Qxd4
{[%clk 0:02:00]} 15... Kf7 {[%clk 0:00:42.4]} 16. h4 {[%clk 0:01:52]} 16... Re8
{[%clk 0:00:35.6]} 17. O-O {[%clk 0:01:51.6]} 17... Kg8 {[%clk 0:00:35.6]} 18.
Rfd1 {[%clk 0:01:50.8]} 18... b3 {[%clk 0:00:23.9]} 19. axb3 {[%clk 0:01:48.5]}
19... Bb7 {[%clk 0:00:24.3]} 20. e3 {[%clk 0:01:45.8]} 20... Qd6 {[%clk
0:00:19.7]} 21. Bh3 {[%clk 0:01:44.2]} 21... Rxa1 {[%clk 0:00:15.6]} 22. Rxa1
{[%clk 0:01:45.1]} 22... Bc8 {[%clk 0:00:15.6]} 23. Bf1 {[%clk 0:01:39.2]} 23...
Be6 {[%clk 0:00:14.1]} 24. Ra6 {[%clk 0:01:35]} 24... Qd7 {[%clk 0:00:10.8]} 25.
Qb6 {[%clk 0:01:20.5]} 25... Bf7 {[%clk 0:00:05.9]} 26. Bb5 {[%clk 0:01:20.4]}
26... Qc8 {[%clk 0:00:01.5]} 27. Bxe8 {[%clk 0:01:20.1]} 27... Bxe8 {[%clk
0:00:01.7]} 28. Qe6+ {[%clk 0:01:19.5]} 28... Qxe6 {[%clk 0:00:01.6]} 29. Rxe6
{[%clk 0:01:19.4]} 1-0

[Event "Early-Titled-Tuesday-Blitz-September-12-2023"]
[Site "Chess.com"]
[Date "2023.09.12"]
[Round "9"]
[White "pirulillo"]
[Black "Biregina"]
[Result "1-0"]
[WhiteElo "2317"]
[BlackElo "2422"]
[TimeControl "180+1"]
[EndTime "9:44:06 PDT"]
[Termination "pirulillo won on time"]

1. e4 {[%clk 0:03:00.9]} 1... d6 {[%clk 0:02:53.2]} 2. d4 {[%clk 0:02:59.4]}
2... Nf6 {[%clk 0:02:54.1]} 3. Nc3 {[%clk 0:02:57.3]} 3... e5 {[%clk 0:02:54.2]}
4. Nf3 {[%clk 0:02:56.7]} 4... Nbd7 {[%clk 0:02:35.5]} 5. Bc4 {[%clk 0:02:56.1]}
5... exd4 {[%clk 0:02:36.1]} 6. Qxd4 {[%clk 0:02:30.5]} 6... Be7 {[%clk
0:02:05.8]} 7. Bxf7+ {[%clk 0:02:07.9]} 7... Kxf7 {[%clk 0:02:06.7]} 8. Ng5+
{[%clk 0:02:07.4]} 8... Kg8 {[%clk 0:02:04.9]} 9. Qc4+ {[%clk 0:02:05.2]} 9...
d5 {[%clk 0:02:04.3]} 10. Nxd5 {[%clk 0:02:04.8]} 10... Ne5 {[%clk 0:02:03]} 11.
Nxf6+ {[%clk 0:01:51.2]} 11... Kf8 {[%clk 0:01:58.8]} 12. Nfxh7+ {[%clk
0:01:47.4]} 12... Ke8 {[%clk 0:01:26.6]} 13. Qb5+ {[%clk 0:01:42.9]} 13... Nc6
{[%clk 0:01:21.2]} 14. Be3 {[%clk 0:01:42.7]} 14... Qd6 {[%clk 0:01:05.8]} 15.
c3 {[%clk 0:01:26.7]} 15... Bd7 {[%clk 0:00:50.2]} 16. Rd1 {[%clk 0:01:20.6]}
16... Ne5 {[%clk 0:00:19.4]} 17. Qxb7 {[%clk 0:00:53.6]} 17... Bc6 {[%clk
0:00:03.8]} 18. Rxd6 {[%clk 0:00:53.8]} 18... Bxb7 {[%clk 0:00:03.7]} 19. Re6
{[%clk 0:00:54.5]} 19... Nc6 {[%clk 0:00:01.4]} 20. Bc5 {[%clk 0:00:49.9]} 1-0

[Event "Early-Titled-Tuesday-Blitz-September-12-2023"]
[Site "Chess.com"]
[Date "2023.09.12"]
[Round "9"]
[White "Rutricks"]
[Black "schack_vit"]
[Result "1-0"]
[WhiteElo "2685"]
[BlackElo "2459"]
[TimeControl "180+1"]
[EndTime "9:44:08 PDT"]
[Termination "Rutricks won by resignation"]

1. e4 {[%clk 0:03:00.9]} 1... c5 {[%clk 0:02:58]} 2. Nf3 {[%clk 0:03:01]} 2...
d6 {[%clk 0:02:58.2]} 3. d4 {[%clk 0:03:00.9]} 3... cxd4 {[%clk 0:02:59.1]} 4.
Nxd4 {[%clk 0:03:01.8]} 4... Nf6 {[%clk 0:02:59.6]} 5. Nc3 {[%clk 0:03:02.2]}
5... g6 {[%clk 0:03:00.3]} 6. Rg1 {[%clk 0:03:02.7]} 6... Bg7 {[%clk 0:03:01]}
7. g4 {[%clk 0:03:03]} 7... Nxg4 {[%clk 0:02:38.2]} 8. Bb5+ {[%clk 0:02:49.2]}
8... Kf8 {[%clk 0:02:38.2]} 9. f3 {[%clk 0:02:43.5]} 9... e5 {[%clk 0:02:26.7]}
10. Nb3 {[%clk 0:02:41.4]} 10... Qh4+ {[%clk 0:02:25.6]} 11. Rg3 {[%clk
0:02:37]} 11... Nxh2 {[%clk 0:02:01]} 12. Qxd6+ {[%clk 0:02:33.2]} 12... Kg8
{[%clk 0:02:00.8]} 13. Kf2 {[%clk 0:02:28]} 13... Be6 {[%clk 0:00:55.6]} 14. Nd5
{[%clk 0:02:14]} 14... Bxd5 {[%clk 0:00:54.1]} 15. Qxd5 {[%clk 0:02:11.4]} 15...
Nc6 {[%clk 0:00:46.1]} 16. Bc4 {[%clk 0:02:11.7]} 16... Qe7 {[%clk 0:00:33]} 17.
Bg5 {[%clk 0:02:09.1]} 17... Bf6 {[%clk 0:00:29.8]} 18. Bxf6 {[%clk 0:02:06.7]}
18... Qxf6 {[%clk 0:00:30.7]} 19. Rh1 {[%clk 0:02:06.6]} 19... Rd8 {[%clk
0:00:26.1]} 20. Qc5 {[%clk 0:02:02.7]} 20... Nd4 {[%clk 0:00:20.1]} 21. Nxd4
{[%clk 0:02:00.6]} 21... Rxd4 {[%clk 0:00:18.9]} 22. Rxh2 {[%clk 0:01:57.6]}
22... Qf4 {[%clk 0:00:16.5]} 23. Bd3 {[%clk 0:01:40.9]} 23... h5 {[%clk
0:00:12.7]} 24. Rhg2 {[%clk 0:01:38.8]} 24... Kg7 {[%clk 0:00:12.2]} 25. Qe7
{[%clk 0:01:37.1]} 25... Rh6 {[%clk 0:00:11.1]} 26. Qxb7 {[%clk 0:01:34.3]}
26... h4 {[%clk 0:00:10.6]} 27. Rh3 {[%clk 0:01:32.7]} 27... Qd2+ {[%clk
0:00:07.2]} 28. Be2 {[%clk 0:01:28.9]} 28... Qxc2 {[%clk 0:00:06.5]} 29. Qxa7
{[%clk 0:01:25.5]} 29... Rd2 {[%clk 0:00:06.4]} 30. Qe3 {[%clk 0:01:22.7]} 30...
Qxb2 {[%clk 0:00:06.5]} 31. Rg4 {[%clk 0:01:21.3]} 31... Qxa2 {[%clk 0:00:05.9]}
32. Rhxh4 {[%clk 0:01:19]} 32... Rxh4 {[%clk 0:00:05.7]} 33. Rxh4 {[%clk
0:01:19.2]} 33... Kf8 {[%clk 0:00:05.8]} 34. Qc5+ {[%clk 0:01:16.2]} 1-0

[Event "Early-Titled-Tuesday-Blitz-September-12-2023"]
[Site "Chess.com"]
[Date "2023.09.12"]
[Round "9"]
[White "Fandorine"]
[Black "Vesper2018"]
[Result "1-0"]
[WhiteElo "2905"]
[BlackElo "2615"]
[TimeControl "180+1"]
[EndTime "9:44:10 PDT"]
[Termination "Fandorine won by resignation"]

1. e4 {[%clk 0:03:00.9]} 1... c5 {[%clk 0:02:59.8]} 2. b3 {[%clk 0:03:01]} 2...
Nc6 {[%clk 0:02:52.9]} 3. Bb2 {[%clk 0:03:01.2]} 3... e6 {[%clk 0:02:53]} 4. Nf3
{[%clk 0:02:51.3]} 4... Nf6 {[%clk 0:02:51.5]} 5. e5 {[%clk 0:02:50.6]} 5... Nd5
{[%clk 0:02:51.1]} 6. g3 {[%clk 0:02:49.7]} 6... Be7 {[%clk 0:02:47.8]} 7. Bg2
{[%clk 0:02:49.2]} 7... O-O {[%clk 0:02:47.6]} 8. O-O {[%clk 0:02:49.6]} 8... d6
{[%clk 0:02:46.1]} 9. exd6 {[%clk 0:02:42.1]} 9... Bxd6 {[%clk 0:02:45.9]} 10.
d4 {[%clk 0:02:39.5]} 10... Bd7 {[%clk 0:02:30.1]} 11. c4 {[%clk 0:02:35.7]}
11... Nf6 {[%clk 0:02:27.7]} 12. Nc3 {[%clk 0:02:30.2]} 12... cxd4 {[%clk
0:02:17.8]} 13. Nxd4 {[%clk 0:02:31.1]} 13... Be5 {[%clk 0:02:18.2]} 14. Nxc6
{[%clk 0:02:25.4]} 14... Bxc6 {[%clk 0:02:16.5]} 15. Bxc6 {[%clk 0:02:25.1]}
15... bxc6 {[%clk 0:02:12.7]} 16. Qe2 {[%clk 0:02:22.9]} 16... Bc7 {[%clk
0:02:08.8]} 17. Rad1 {[%clk 0:02:17.8]} 17... Qe7 {[%clk 0:02:07.8]} 18. Ne4
{[%clk 0:02:17.2]} 18... e5 {[%clk 0:01:48.4]} 19. Nxf6+ {[%clk 0:02:16.1]}
19... Qxf6 {[%clk 0:01:45.9]} 20. Rd7 {[%clk 0:02:16.1]} 20... Rac8 {[%clk
0:01:42.3]} 21. Rfd1 {[%clk 0:02:14.9]} 21... Rfe8 {[%clk 0:01:41.8]} 22. Qe4
{[%clk 0:02:12.2]} 22... Qe6 {[%clk 0:01:38.6]} 23. g4 {[%clk 0:02:01.6]} 23...
Qh6 {[%clk 0:01:28.8]} 24. Kg2 {[%clk 0:01:45.6]} 24... Qe6 {[%clk 0:01:13.3]}
25. R1d3 {[%clk 0:01:30.8]} 25... g6 {[%clk 0:01:11.2]} 26. g5 {[%clk
0:01:22.3]} 26... Re7 {[%clk 0:01:00.3]} 27. Rxe7 {[%clk 0:01:06.4]} 27... Qxe7
{[%clk 0:01:00.4]} 28. h4 {[%clk 0:01:05.4]} 28... Qc5 {[%clk 0:00:55.6]} 29.
Rd7 {[%clk 0:00:58]} 29... Bb6 {[%clk 0:00:52.5]} 30. Qf3 {[%clk 0:00:58.2]}
30... Rf8 {[%clk 0:00:49.9]} 31. Qf6 {[%clk 0:00:58.6]} 1-0

[Event "Early-Titled-Tuesday-Blitz-September-12-2023"]
[Site "Chess.com"]
[Date "2023.09.12"]
[Round "9"]
[White "Payyappat"]
[Black "LuisFSiles"]
[Result "0-1"]
[WhiteElo "2480"]
[BlackElo "2388"]
[TimeControl "180+1"]
[EndTime "9:44:13 PDT"]
[Termination "LuisFSiles won by resignation"]

1. e4 {[%clk 0:03:00.9]} 1... c5 {[%clk 0:02:59.1]} 2. Nf3 {[%clk 0:03:00.2]}
2... Nc6 {[%clk 0:02:59.3]} 3. d4 {[%clk 0:02:58.9]} 3... cxd4 {[%clk
0:03:00.2]} 4. Nxd4 {[%clk 0:02:58.9]} 4... Nf6 {[%clk 0:03:00.8]} 5. Nc3 {[%clk
0:02:58.1]} 5... e5 {[%clk 0:03:00.7]} 6. Ndb5 {[%clk 0:02:54.1]} 6... d6 {[%clk
0:03:01]} 7. Bg5 {[%clk 0:02:47.7]} 7... a6 {[%clk 0:03:01.3]} 8. Na3 {[%clk
0:02:46.8]} 8... b5 {[%clk 0:03:02.2]} 9. Nd5 {[%clk 0:02:44.5]} 9... Be7 {[%clk
0:03:01.7]} 10. Bxf6 {[%clk 0:02:43.9]} 10... Bxf6 {[%clk 0:03:02.6]} 11. c4
{[%clk 0:02:40.9]} 11... b4 {[%clk 0:02:59.9]} 12. Nc2 {[%clk 0:02:39.4]} 12...
a5 {[%clk 0:03:00.2]} 13. g3 {[%clk 0:02:33.9]} 13... Bg5 {[%clk 0:02:56.9]} 14.
Bg2 {[%clk 0:02:33.6]} 14... O-O {[%clk 0:02:54.8]} 15. O-O {[%clk 0:02:33.4]}
15... Be6 {[%clk 0:02:54.6]} 16. f4 {[%clk 0:02:27.2]} 16... exf4 {[%clk
0:02:46]} 17. gxf4 {[%clk 0:02:26.5]} 17... Bh6 {[%clk 0:02:32.5]} 18. Nce3
{[%clk 0:02:17.3]} 18... Ra7 {[%clk 0:02:19.1]} 19. Kh1 {[%clk 0:02:00.3]} 19...
Qh4 {[%clk 0:02:07]} 20. f5 {[%clk 0:01:43.7]} 20... Bxd5 {[%clk 0:02:01.5]} 21.
Nxd5 {[%clk 0:01:44.6]} 21... Ne5 {[%clk 0:01:57.6]} 22. Qe2 {[%clk 0:01:35.8]}
22... f6 {[%clk 0:01:40.7]} 23. Rad1 {[%clk 0:01:24.1]} 23... g5 {[%clk
0:01:40]} 24. Ne3 {[%clk 0:00:56.7]} 24... g4 {[%clk 0:01:15.2]} 25. Rg1 {[%clk
0:00:36.2]} 25... Rg7 {[%clk 0:01:14.9]} 26. Nf1 {[%clk 0:00:22.6]} 26... Bf4
{[%clk 0:01:08]} 27. Qe1 {[%clk 0:00:12]} 27... g3 {[%clk 0:01:01.4]} 28. h3
{[%clk 0:00:11.2]} 28... Ng4 {[%clk 0:00:59.1]} 29. Rd2 {[%clk 0:00:05.7]} 0-1

[Event "Early-Titled-Tuesday-Blitz-September-12-2023"]
[Site "Chess.com"]
[Date "2023.09.12"]
[Round "9"]
[White "RandomNoob04"]
[Black "Zkid"]
[Result "0-1"]
[WhiteElo "2638"]
[BlackElo "2880"]
[TimeControl "180+1"]
[EndTime "9:44:30 PDT"]
[Termination "Zkid won by resignation"]

1. e4 {[%clk 0:03:00.9]} 1... e6 {[%clk 0:03:00.3]} 2. d4 {[%clk 0:03:00.9]}
2... d5 {[%clk 0:03:01]} 3. exd5 {[%clk 0:03:01.8]} 3... exd5 {[%clk 0:03:01.5]}
4. Nf3 {[%clk 0:03:02.7]} 4... Nc6 {[%clk 0:03:01.6]} 5. Nc3 {[%clk 0:03:02.7]}
5... Bg4 {[%clk 0:02:57.3]} 6. Bb5 {[%clk 0:02:57.8]} 6... a6 {[%clk 0:02:53.7]}
7. Bxc6+ {[%clk 0:02:56.2]} 7... bxc6 {[%clk 0:02:54.6]} 8. O-O {[%clk
0:02:56.5]} 8... Bd6 {[%clk 0:02:54.9]} 9. h3 {[%clk 0:02:54.8]} 9... Bh5 {[%clk
0:02:54.7]} 10. Re1+ {[%clk 0:02:54.8]} 10... Ne7 {[%clk 0:02:54.4]} 11. g4
{[%clk 0:02:47.2]} 11... Bg6 {[%clk 0:02:54.3]} 12. Ne5 {[%clk 0:02:47.4]} 12...
O-O {[%clk 0:02:50.5]} 13. Bf4 {[%clk 0:02:33.1]} 13... f6 {[%clk 0:02:45.6]}
14. Nxg6 {[%clk 0:02:26.6]} 14... Nxg6 {[%clk 0:02:46.5]} 15. Bxd6 {[%clk
0:02:24.6]} 15... Qxd6 {[%clk 0:02:47.4]} 16. Qf3 {[%clk 0:02:22.7]} 16... Nh4
{[%clk 0:02:39.8]} 17. Qe3 {[%clk 0:02:12.8]} 17... Rae8 {[%clk 0:02:28]} 18.
Qxe8 {[%clk 0:02:13]} 18... Nf3+ {[%clk 0:02:28.1]} 19. Kg2 {[%clk 0:02:09.7]}
19... Qh2+ {[%clk 0:02:26.4]} 20. Kxf3 {[%clk 0:02:00.4]} 20... Qxh3+ {[%clk
0:02:26.1]} 21. Kf4 {[%clk 0:02:00.3]} 21... g5+ {[%clk 0:02:25.4]} 22. Kf5
{[%clk 0:01:59.3]} 22... Qf3+ {[%clk 0:02:25]} 23. Ke6 {[%clk 0:01:58.4]} 23...
Rxe8+ {[%clk 0:02:24.9]} 24. Kd7 {[%clk 0:01:58.8]} 24... Rf8 {[%clk 0:02:10.9]}
25. Kxc6 {[%clk 0:01:54.6]} 25... Qxg4 {[%clk 0:02:09.6]} 26. Nxd5 {[%clk
0:01:53.9]} 26... Qxd4 {[%clk 0:02:09.7]} 27. b3 {[%clk 0:01:43]} 27... Rd8
{[%clk 0:01:29.6]} 28. Rad1 {[%clk 0:01:28.5]} 28... Rd6+ {[%clk 0:01:26.5]} 29.
Kb7 {[%clk 0:01:28.5]} 29... Qc5 {[%clk 0:01:19.3]} 30. Ne7+ {[%clk 0:01:14.3]}
30... Kf7 {[%clk 0:01:14.9]} 31. Rxd6 {[%clk 0:01:14.5]} 31... cxd6 {[%clk
0:01:10.6]} 32. Nc6 {[%clk 0:01:08.3]} 32... Qxf2 {[%clk 0:01:08.8]} 33. Re7+
{[%clk 0:01:05.8]} 33... Kg6 {[%clk 0:01:08.9]} 34. Rc7 {[%clk 0:00:54.6]} 34...
g4 {[%clk 0:01:05.4]} 35. Ne7+ {[%clk 0:00:49.7]} 35... Kg5 {[%clk 0:00:59.6]}
36. Nd5 {[%clk 0:00:49.7]} 36... h5 {[%clk 0:00:59]} 37. Rg7+ {[%clk 0:00:44.1]}
37... Kh6 {[%clk 0:00:58.7]} 38. Rf7 {[%clk 0:00:44]} 38... g3 {[%clk
0:00:47.3]} 39. Nxf6 {[%clk 0:00:39.3]} 39... Kg6 {[%clk 0:00:46.8]} 40. Rf8
{[%clk 0:00:37.9]} 40... Qxf6 {[%clk 0:00:46.9]} 41. Rg8+ {[%clk 0:00:36.3]}
41... Qg7+ {[%clk 0:00:46.1]} 0-1

[Event "Early-Titled-Tuesday-Blitz-September-12-2023"]
[Site "Chess.com"]
[Date "2023.09.12"]
[Round "9"]
[White "dadice10"]
[Black "supereagles1201"]
[Result "1-0"]
[WhiteElo "2237"]
[BlackElo "2372"]
[TimeControl "180+1"]
[EndTime "9:44:33 PDT"]
[Termination "dadice10 won by checkmate"]

1. e4 {[%clk 0:03:00.9]} 1... c5 {[%clk 0:02:59.8]} 2. Nc3 {[%clk 0:02:58.5]}
2... Nc6 {[%clk 0:02:59.2]} 3. Bb5 {[%clk 0:02:57.3]} 3... Nd4 {[%clk
0:02:58.2]} 4. Bc4 {[%clk 0:02:57.2]} 4... e6 {[%clk 0:02:56.9]} 5. Nge2 {[%clk
0:02:57.1]} 5... Nf6 {[%clk 0:02:54.4]} 6. O-O {[%clk 0:02:55.7]} 6... d5 {[%clk
0:02:51]} 7. exd5 {[%clk 0:02:56.6]} 7... exd5 {[%clk 0:02:50.4]} 8. Nxd5 {[%clk
0:02:53.9]} 8... Nxd5 {[%clk 0:02:48.7]} 9. Nxd4 {[%clk 0:02:53.6]} 9... cxd4
{[%clk 0:02:46.8]} 10. Qh5 {[%clk 0:02:52.4]} 10... Be6 {[%clk 0:02:39.4]} 11.
Re1 {[%clk 0:02:51.8]} 11... g6 {[%clk 0:01:23.8]} 12. Qxd5 {[%clk 0:02:48.1]}
12... Qxd5 {[%clk 0:01:19.8]} 13. Bxd5 {[%clk 0:02:49]} 13... O-O-O {[%clk
0:01:11.1]} 14. Bxe6+ {[%clk 0:02:48.2]} 14... fxe6 {[%clk 0:01:11.9]} 15. Rxe6
{[%clk 0:02:46.2]} 15... d3 {[%clk 0:01:12.5]} 16. c3 {[%clk 0:02:42.5]} 16...
Bc5 {[%clk 0:01:10]} 17. b4 {[%clk 0:02:41.3]} 17... Bb6 {[%clk 0:01:06.6]} 18.
a4 {[%clk 0:02:34.7]} 18... Rhf8 {[%clk 0:01:05]} 19. Ba3 {[%clk 0:02:15.2]}
19... Rxf2 {[%clk 0:00:50.4]} 20. Rxb6 {[%clk 0:02:11.8]} 20... Rdf8 {[%clk
0:00:42]} 21. b5 {[%clk 0:01:37.5]} 21... R8f4 {[%clk 0:00:33.7]} 22. Bd6 {[%clk
0:01:32.6]} 22... Rf7 {[%clk 0:00:19.8]} 23. Bc5 {[%clk 0:01:24]} 23... Rxd2
{[%clk 0:00:19]} 24. Rd6 {[%clk 0:01:23.5]} 24... Rc2 {[%clk 0:00:17.3]} 25.
Rxd3 {[%clk 0:01:19.1]} 25... Rf5 {[%clk 0:00:16.3]} 26. Bd4 {[%clk 0:01:18.7]}
26... a6 {[%clk 0:00:07.3]} 27. bxa6 {[%clk 0:01:17.1]} 27... bxa6 {[%clk
0:00:08.2]} 28. Rf1 {[%clk 0:01:15.4]} 28... Ra5 {[%clk 0:00:07]} 29. h3 {[%clk
0:01:08.1]} 29... Rxa4 {[%clk 0:00:07.1]} 30. Rf7 {[%clk 0:01:07.5]} 30... Raa2
{[%clk 0:00:05.7]} 31. Rg3 {[%clk 0:01:06.1]} 31... Ra1+ {[%clk 0:00:04]} 32.
Kh2 {[%clk 0:01:06.1]} 32... Rcc1 {[%clk 0:00:04.5]} 33. Rg5 {[%clk 0:01:03]}
33... Rh1+ {[%clk 0:00:04]} 34. Kg3 {[%clk 0:01:01.7]} 34... Ra2 {[%clk
0:00:04]} 35. Rc5+ {[%clk 0:00:59.1]} 35... Kd8 {[%clk 0:00:03.3]} 36. Bf6+
{[%clk 0:00:58.4]} 36... Ke8 {[%clk 0:00:03.7]} 37. Re7+ {[%clk 0:00:58]} 37...
Kf8 {[%clk 0:00:04.4]} 38. Rc8# {[%clk 0:00:57.4]} 1-0